[Event "EYCC Girls-U12 2019"]
[Site "Bratislava"]
[Date "2019.08.03"]
[Round "2.7"]
[White "Gadasi, Noam"]
[Black "Bochnickova, Simona"]
[Result "1-0"]
[ECO "C65"]
[WhiteElo "1585"]
[BlackElo "1684"]
[Annotator "NA"]
[PlyCount "59"]
[EventDate "2019.08.02"]
[EventType "swiss"]
[EventCountry "SVK"]
[SourceTitle "playchess.com"]
[Source "ChessBase"]
[SourceQuality "1"]
[TimeControl "40/5400+30:1800+30"]

1. e4 {[%emt 0:00:00]} e5 {[%emt 0:00:00]} 2. Nf3 {[%emt 0:00:00]} Nc6 {[%emt 0:00:00]} 3. Bb5 {[%emt 0:00:03]} Nf6 {[%emt 0:00:05]} 4. d3 {[%emt 0:00:25]} d6 {[%emt 0:02:06]} 5. c3 {[%emt 0:00:55]} Be7 {[%emt 0:01:01]} 6. O-O {[%emt 0:01:05]} O-O {[%emt 0:00:12]} 7. Re1 {[%emt 0:01:41]} Bg4 {[%emt 0:07:18]} 8. h3 {[%emt 0:01:38]} Bh5 {[%emt 0:00:56]} 9. Nbd2 {[%emt 0:02:51]} a6 {[%emt 0:02:24]} 10. Ba4 {[%emt 0:00:49]} b5 {[%emt 0:09:33]} 11. Bb3 {[%emt 0:07:03]} d5 {[%emt 0:07:33]} 12. exd5 {[%emt 0:05:34]} Nxd5 {[%emt 0:02:58]} 13. Nf1 {[%emt 0:01:37]} Nf4 {[%emt 0:02:55]} 14. Bxf4 {[%emt 0:02:20]} exf4 {[%emt 0:00:14]} 15. Qe2 {[%emt 0:11:55]} Re8 {[%emt 0:03:50]} 16. Qe4 {[%emt 0:14:17]} Qd6 {[%emt 0:02:59]} 17. Qd5 {[%emt 0:06:14]} Rad8 {[%emt 0:19:52]} 18. Qxh5 {[%emt 0:17:13]} g6 {[%emt 0:00:24]} 19. Qh6 {[%emt 0:02:02]} Qf6 {[%emt 0:03:45]} 20. h4 {[%emt 0:00:34]} Qf5 {[%emt 0:02:39]} 21. Ng5 {[%emt 0:01:30]} Bxg5 {[%emt 0:00:37]} 22. Rxe8+ {[%emt 0:00:20]} Rxe8 {[%emt 0:00:12]} 23. Qxg5 {[%emt 0:00:05]} Qxg5 {[%emt 0:02:00]} 24. hxg5 {[%emt 0:01:02]} Re2 {[%emt 0:00:18]} 25. Rb1 {[%emt 0:01:34]} Ne5 {[%emt 0:00:12]} 26. Bd1 {[%emt 0:06:54]} Re1 {[%emt 0:00:04]} 27. Bc2 {[%emt 0:00:17]} Re2 {[%emt 0:00:16]} 28. Rc1 {[%emt 0:00:36]} Ng4 {[%emt 0:03:05]} 29. b4 {[%emt 0:03:05]} Rxf2 {[%emt 0:02:06]} 30. Bd1 1-0

[Event "EYCC Girls-U12 2019"]
[Site "Bratislava"]
[Date "2019.08.03"]
[Round "2.8"]
[White "Karaivanova, Petya"]
[Black "Haile, Batel Goitom"]
[Result "1-0"]
[ECO "B35"]
[WhiteElo "1792"]
[BlackElo "1522"]
[Annotator "NA"]
[PlyCount "46"]
[EventDate "2019.08.02"]
[EventType "swiss"]
[EventCountry "SVK"]
[SourceTitle "playchess.com"]
[Source "ChessBase"]
[SourceQuality "1"]
[TimeControl "40/5400+30:1800+30"]

1. e4 {[%emt 0:00:00]} c5 {[%emt 0:00:00]} 2. Nf3 {[%emt 0:00:00]} g6 {[%emt 0:00:04]} 3. d4 {[%emt 0:00:00]} cxd4 {[%emt 0:00:13]} 4. Nxd4 {[%emt 0:00:00]} Bg7 {[%emt 0:00:50]} 5. Be3 {[%emt 0:00:57]} Nc6 {[%emt 0:01:09]} 6. Nc3 {[%emt 0:00:39]} Nf6 {[%emt 0:00:17]} 7. Bc4 {[%emt 0:00:47]} O-O {[%emt 0:00:22]} 8. Bb3 {[%emt 0:01:26]} a5 {[%emt 0:00:42]} 9. f3 {[%emt 0:04:34]} d5 {[%emt 0:18:53]} 10. exd5 {[%emt 0:13:37]} Nb4 {[%emt 0:01:41]} 11. Nde2 {[%emt 0:06:10]} a4 {[%emt 0:20:08]} 12. Bc4 {[%emt 0:03:22]} Bf5 {[%emt 0:06:48]} 13. Nd4 {[%emt 0:03:24]} Nfxd5 {[%emt 0:19:45]} 14. Nxf5 {[%emt 0:10:21]} Nxc3 {[%emt 0:06:38]} 15. Qxd8 {[%emt 0:03:58]} Rfxd8 {[%emt 0:05:11]} 16. Nxe7+ {[%emt 0:03:41]} Kf8 {[%emt 0:03:24]} 17. Nxg6+ {[%emt 0:02:04]} hxg6 {[%emt 0:10:00]} 18. Bc5+ {[%emt 0:00:08]} Kg8 {[%emt 0:00:12]} 19. Bxb4 {[%emt 0:00:13]} Nd5 {[%emt 0:00:59]} 20. Bxd5 {[%emt 0:04:13]} Rxd5 {[%emt 0:00:15]} 21. O-O {[%emt 0:03:42]} Bxb2 {[%emt 0:00:55]} 22. Rae1 {[%emt 0:04:45]} Rad8 {[%emt 0:01:35]} 23. a3 {[%emt 0:01:23]} Rc8 {time} 1-0

[Event "EYCC Girls-U12 2019"]
[Site "Bratislava"]
[Date "2019.08.03"]
[Round "2.9"]
[White "Verheij, Dana"]
[Black "Markus, Molli Amina"]
[Result "1/2-1/2"]
[ECO "C10"]
[WhiteElo "1497"]
[BlackElo "1743"]
[Annotator "NA"]
[PlyCount "98"]
[EventDate "2019.08.02"]
[EventType "swiss"]
[EventCountry "SVK"]
[SourceTitle "playchess.com"]
[Source "ChessBase"]
[SourceQuality "1"]
[TimeControl "40/5400+30:1800+30"]

1. e4 {[%emt 0:00:00]} e6 {[%emt 0:00:00]} 2. d4 {[%emt 0:00:00]} d5 {[%emt 0:00:14]} 3. Nd2 {[%emt 0:00:00]} dxe4 {[%emt 0:01:15]} 4. Nxe4 {[%emt 0:00:00]} Bd7 {[%emt 0:00:50]} 5. Nf3 {[%emt 0:00:41]} Bc6 {[%emt 0:01:00]} 6. Bd3 {[%emt 0:01:26]} Nf6 {[%emt 0:01:57]} 7. Qe2 {[%emt 0:03:12]} Nxe4 {[%emt 0:03:46]} 8. Bxe4 {[%emt 0:00:21]} Bxe4 {[%emt 0:01:36]} 9. Qxe4 {[%emt 0:00:19]} c6 {[%emt 0:00:28]} 10. O-O {[%emt 0:01:03]} Be7 {[%emt 0:01:58]} 11. Qg4 {[%emt 0:06:16]} Bf6 {[%emt 0:07:01]} 12. Bf4 {[%emt 0:02:57]} O-O {[%emt 0:03:24]} 13. Rfe1 {[%emt 0:01:09]} Nd7 {[%emt 0:02:01]} 14. Rad1 {[%emt 0:01:42]} Kh8 {[%emt 0:08:48]} 15. Rd3 {[%emt 0:02:04]} g6 {[%emt 0:04:35]} 16. Ne5 {[%emt 0:00:42]} Bg7 {[%emt 0:03:42]} 17. Rh3 {[%emt 0:01:26]} Nxe5 {[%emt 0:05:30]} 18. dxe5 {[%emt 0:00:47]} h5 {[%emt 0:05:00]} 19. Ree3 {[%emt 0:28:31]} Qd2 {[%emt 0:08:32]} 20. Rxh5+ {[%emt 0:17:40]} gxh5 {[%emt 0:02:28]} 21. Qxh5+ {[%emt 0:04:43]} Kg8 {[%emt 0:00:11]} 22. h4 {[%emt 0:00:42]} Rad8 {[%emt 0:09:25]} 23. Qg5 {[%emt 0:00:37]} Qxc2 {[%emt 0:03:37]} 24. h5 {[%emt 0:01:49]} Qf5 {[%emt 0:01:31]} 25. Qh4 {[%emt 0:11:15]} Rd4 {[%emt 0:02:42]} 26. Rf3 {[%emt 0:01:24]} Bxe5 {[%emt 0:06:07]} 27. Qg3+ {[%emt 0:00:32]} Bg7 {[%emt 0:00:10]} 28. Bg5 {[%emt 0:05:40]} Qe5 {[%emt 0:01:13]} 29. h6 {[%emt 0:02:18]} Rd1+ {[%emt 0:04:45]} 30. Kh2 {[%emt 0:00:05]} Qxg3+ {[%emt 0:02:36]} 31. Rxg3 {[%emt 0:00:06]} Be5 {[%emt 0:00:45]} 32. Bf4+ {[%emt 0:00:11]} Kh7 {[%emt 0:00:07]} 33. Bxe5 {[%emt 0:00:05]} Rg8 {[%emt 0:00:36]} 34. Bg7 {[%emt 0:02:19]} Rd5 {[%emt 0:00:39]} 35. Rf3 {[%emt 0:00:25]} Rxg7 {[%emt 0:01:25]} 36. hxg7 {[%emt 0:00:08]} Kxg7 {[%emt 0:00:04]} 37. Kg3 {[%emt 0:00:49]} Rg5+ {[%emt 0:00:34]} 38. Kh3 {[%emt 0:00:26]} Rb5 {[%emt 0:00:27]} 39. b3 {[%emt 0:00:14]} a5 {[%emt 0:00:58]} 40. Kg4 {[%emt 0:00:00]} Rb4+ {[%emt 0:00:00]} 41. Kg5 {[%emt 0:01:15]} a4 {[%emt 0:02:21]} 42. Rd3 {[%emt 0:00:26]} axb3 {[%emt 0:01:30]} 43. axb3 {[%emt 0:00:10]} Rb5+ {[%emt 0:02:35]} 44. Kg4 {[%emt 0:00:27]} Rd5 {[%emt 0:00:19]} 45. Rc3 {[%emt 0:00:32]} Kf6 {[%emt 0:00:31]} 46. f4 {[%emt 0:00:28]} Rd4 {[%emt 0:00:43]} 47. g3 {[%emt 0:00:46]} e5 {[%emt 0:05:03]} 48. Kf3 {[%emt 0:01:17]} exf4 {[%emt 0:01:12]} 49. gxf4 {[%emt 0:00:33]} Rb4 1/2-1/2

[Event "EYCC Girls-U12 2019"]
[Site "Bratislava"]
[Date "2019.08.03"]
[Round "2.10"]
[White "Schippke, Manon"]
[Black "Dubovik, Maria"]
[Result "1-0"]
[ECO "B50"]
[WhiteElo "1743"]
[BlackElo "1510"]
[Annotator "NA"]
[PlyCount "119"]
[EventDate "2019.08.02"]
[EventType "swiss"]
[EventCountry "SVK"]
[SourceTitle "playchess.com"]
[Source "ChessBase"]
[SourceQuality "1"]
[TimeControl "40/5400+30:1800+30"]

1. e4 {[%emt 0:00:00]} c5 {[%emt 0:00:12]} 2. Nf3 {[%emt 0:01:06]} d6 {[%emt 0:00:41]} 3. g3 {[%emt 0:00:55]} Nc6 {[%emt 0:00:29]} 4. Bg2 {[%emt 0:01:11]} g6 {[%emt 0:00:50]} 5. O-O {[%emt 0:01:05]} Bg7 {[%emt 0:00:32]} 6. d3 {[%emt 0:01:27]} e5 {[%emt 0:01:36]} 7. Nc3 {[%emt 0:01:00]} Nge7 {[%emt 0:00:52]} 8. Nd2 {[%emt 0:03:16]} O-O {[%emt 0:02:48]} 9. Nc4 {[%emt 0:04:35]} a6 {[%emt 0:04:20]} 10. a4 {[%emt 0:02:20]} Be6 {[%emt 0:02:15]} 11. Ne3 {[%emt 0:03:01]} Nd4 {[%emt 0:05:03]} 12. Ned5 {[%emt 0:11:20]} Nxd5 {[%emt 0:07:11]} 13. Nxd5 {[%emt 0:13:21]} f5 {[%emt 0:07:44]} 14. exf5 {[%emt 0:03:58]} gxf5 {[%emt 0:09:27]} 15. c3 {[%emt 0:06:28]} Nc6 {[%emt 0:02:58]} 16. Qh5 {[%emt 0:03:05]} Bxd5 {[%emt 0:02:51]} 17. Bxd5+ {[%emt 0:00:06]} Kh8 {[%emt 0:00:17]} 18. Bg5 {[%emt 0:06:48]} Qe8 {[%emt 0:05:26]} 19. Qh4 {[%emt 0:03:50]} Qg6 {[%emt 0:03:49]} 20. Rae1 {[%emt 0:02:35]} Rae8 {[%emt 0:01:44]} 21. Bf3 {[%emt 0:02:33]} Bf6 {[%emt 0:05:25]} 22. Bxf6+ {[%emt 0:01:34]} Qxf6 {[%emt 0:02:11]} 23. Qxf6+ {[%emt 0:00:32]} Rxf6 {[%emt 0:00:14]} 24. Bxc6 {[%emt 0:06:03]} bxc6 {[%emt 0:00:10]} 25. d4 {[%emt 0:00:34]} cxd4 {[%emt 0:00:36]} 26. cxd4 {[%emt 0:01:07]} e4 {[%emt 0:00:28]} 27. Rc1 {[%emt 0:01:15]} d5 {[%emt 0:00:18]} 28. Rc5 {[%emt 0:00:28]} Rb8 {[%emt 0:00:30]} 29. Rfc1 {[%emt 0:00:58]} Rxb2 {[%emt 0:00:58]} 30. Rxc6 {[%emt 0:00:07]} Rb6 {[%emt 0:00:38]} 31. Rxf6 {[%emt 0:01:00]} Rxf6 {[%emt 0:00:05]} 32. Rc8+ {[%emt 0:00:32]} Kg7 {[%emt 0:00:40]} 33. Rd8 {[%emt 0:00:13]} Kg6 {[%emt 0:00:55]} 34. Rxd5 {[%emt 0:00:16]} Rc6 {[%emt 0:01:01]} 35. Ra5 {[%emt 0:01:36]} Rd6 {[%emt 0:01:07]} 36. Kf1 {[%emt 0:03:36]} Kg5 {[%emt 0:02:47]} 37. d5 {[%emt 0:01:57]} Kf6 {[%emt 0:01:04]} 38. Ke2 {[%emt 0:00:06]} Ke5 {[%emt 0:01:16]} 39. Ke3 {[%emt 0:00:10]} Rxd5 {[%emt 0:07:22]} 40. Rxd5+ {[%emt 0:00:00]} Kxd5 {[%emt 0:00:00]} 41. Kf4 {[%emt 0:00:22]} Ke6 {[%emt 0:04:09]} 42. g4 {[%emt 0:07:07]} fxg4 {[%emt 0:00:55]} 43. Kxe4 {[%emt 0:00:04]} h5 {[%emt 0:00:33]} 44. Kf4 {[%emt 0:00:03]} Kf6 {[%emt 0:00:50]} 45. f3 {[%emt 0:01:29]} gxf3 {[%emt 0:00:13]} 46. Kxf3 {[%emt 0:00:04]} Kf5 {[%emt 0:00:35]} 47. a5 {[%emt 0:13:45]} h4 {[%emt 0:01:40]} 48. h3 {[%emt 0:00:34]} Ke5 {[%emt 0:02:04]} 49. Kg4 {[%emt 0:00:16]} Ke4 {[%emt 0:00:23]} 50. Kxh4 {[%emt 0:00:09]} Kf4 {[%emt 0:00:07]} 51. Kh5 {[%emt 0:00:21]} Kf5 {[%emt 0:00:05]} 52. h4 {[%emt 0:00:20]} Kf6 {[%emt 0:00:12]} 53. Kg4 {[%emt 0:00:11]} Kg6 {[%emt 0:00:06]} 54. h5+ {[%emt 0:00:08]} Kh6 {[%emt 0:00:03]} 55. Kh4 {[%emt 0:00:03]} Kg7 {[%emt 0:00:06]} 56. Kg5 {[%emt 0:00:04]} Kh7 {[%emt 0:00:06]} 57. Kf6 {[%emt 0:00:23]} Kh6 {[%emt 0:00:11]} 58. Ke6 {[%emt 0:00:05]} Kxh5 {[%emt 0:00:07]} 59. Kd6 {[%emt 0:00:07]} Kg6 {[%emt 0:00:02]} 60. Kc6 {[%emt 0:00:10]} 1-0

[Event "EYCC Girls-U12 2019"]
[Site "Bratislava"]
[Date "2019.08.04"]
[Round "3.1"]
[White "Siekanska, Maria"]
[Black "Shvedova, Alexandra"]
[Result "0-1"]
[ECO "D35"]
[WhiteElo "1561"]
[BlackElo "1932"]
[Annotator "NA"]
[PlyCount "54"]
[EventDate "2019.08.02"]
[EventType "swiss"]
[EventCountry "SVK"]
[SourceTitle "playchess.com"]
[Source "ChessBase"]
[SourceQuality "1"]
[TimeControl "40/5400+30:1800+30"]

1. d4 {[%emt 0:00:00]} d5 {[%emt 0:00:00]} 2. c4 {[%emt 0:00:00]} e6 {[%emt 0:00:00]} 3. Nc3 {[%emt 0:00:00]} Nf6 {[%emt 0:00:00]} 4. cxd5 {[%emt 0:00:07]} exd5 {[%emt 0:00:00]} 5. Bg5 {[%emt 0:00:16]} c6 {[%emt 0:00:00]} 6. e3 {[%emt 0:00:25]} Be7 {[%emt 0:00:38]} 7. Bd3 {[%emt 0:00:25]} Bg4 {[%emt 0:00:25]} 8. f3 {[%emt 0:02:59]} Bh5 {[%emt 0:00:06]} 9. Nge2 {[%emt 0:01:00]} Bg6 {[%emt 0:00:14]} 10. Bxg6 {[%emt 0:01:57]} hxg6 {[%emt 0:00:09]} 11. Qc2 {[%emt 0:02:56]} Na6 {[%emt 0:00:52]} 12. a3 {[%emt 0:01:58]} Nc7 {[%emt 0:06:10]} 13. O-O-O {[%emt 0:11:25]} b5 {[%emt 0:19:13]} 14. e4 {[%emt 0:05:35]} O-O {[%emt 0:04:11]} 15. h4 {[%emt 0:03:23]} dxe4 {[%emt 0:02:49]} 16. fxe4 {[%emt 0:06:35]} Ng4 {[%emt 0:00:40]} 17. Bxe7 {[%emt 0:02:04]} Qxe7 {[%emt 0:00:04]} 18. Rde1 {[%emt 0:02:46]} a5 {[%emt 0:02:05]} 19. e5 {[%emt 0:03:20]} b4 {[%emt 0:05:30]} 20. axb4 {[%emt 0:02:18]} axb4 {[%emt 0:02:40]} 21. Nb1 {[%emt 0:00:48]} Nd5 {[%emt 0:02:11]} 22. h5 {[%emt 0:03:32]} c5 {[%emt 0:03:37]} 23. hxg6 {[%emt 0:01:48]} Qg5+ {[%emt 0:00:06]} 24. Qd2 {[%emt 0:00:56]} Nge3 {[%emt 0:07:49]} 25. gxf7+ {[%emt 0:05:51]} Rxf7 {[%emt 0:00:07]} 26. b3 {[%emt 0:04:56]} Rc7 {[%emt 0:00:28]} 27. Kb2 {[%emt 0:00:17]} Rca7 {[%emt 0:00:37]} 0-1

[Event "EYCC Girls-U12 2019"]
[Site "Bratislava"]
[Date "2019.08.04"]
[Round "3.2"]
[White "Gasimova, Samra"]
[Black "Karmanova, Olga Dm."]
[Result "0-1"]
[ECO "E61"]
[WhiteElo "1695"]
[BlackElo "1838"]
[Annotator "NA"]
[PlyCount "100"]
[EventDate "2019.08.02"]
[EventType "swiss"]
[EventCountry "SVK"]
[SourceTitle "playchess.com"]
[Source "ChessBase"]
[SourceQuality "1"]
[TimeControl "40/5400+30:1800+30"]

1. d4 {[%emt 0:00:00]} Nf6 {[%emt 0:00:00]} 2. c4 {[%emt 0:00:00]} d6 {[%emt 0:00:00]} 3. Nf3 {[%emt 0:00:59]} g6 {[%emt 0:00:06]} 4. Nc3 {[%emt 0:00:08]} Bg7 {[%emt 0:00:14]} 5. Bg5 {[%emt 0:00:35]} h6 {[%emt 0:00:12]} 6. Bh4 {[%emt 0:00:22]} g5 {[%emt 0:00:46]} 7. Bg3 {[%emt 0:00:15]} Nh5 {[%emt 0:00:36]} 8. e3 {[%emt 0:00:28]} Nd7 {[%emt 0:00:46]} 9. Be2 {[%emt 0:05:37]} Nxg3 {[%emt 0:08:10]} 10. hxg3 {[%emt 0:02:21]} c5 {[%emt 0:01:01]} 11. Qd3 {[%emt 0:02:46]} Qa5 {[%emt 0:03:09]} 12. Nd2 {[%emt 0:09:11]} a6 {[%emt 0:04:29]} 13. Nb3 {[%emt 0:13:08]} Qc7 {[%emt 0:03:46]} 14. Nd5 {[%emt 0:01:03]} Qd8 {[%emt 0:00:18]} 15. Rd1 {[%emt 0:01:31]} cxd4 {[%emt 0:09:19]} 16. exd4 {[%emt 0:01:29]} O-O {[%emt 0:07:13]} 17. Ne3 {[%emt 0:03:29]} Nb8 {[%emt 0:08:47]} 18. f4 {[%emt 0:02:34]} f5 {[%emt 0:06:41]} 19. fxg5 {[%emt 0:01:31]} hxg5 {[%emt 0:00:02]} 20. g4 {[%emt 0:05:13]} e6 {[%emt 0:03:56]} 21. gxf5 {[%emt 0:02:45]} exf5 {[%emt 0:00:07]} 22. g4 {[%emt 0:00:17]} f4 {[%emt 0:12:49]} 23. Nd5 {[%emt 0:08:08]} Nc6 {[%emt 0:08:02]} 24. Qh7+ {[%emt 0:00:44]} Kf7 {[%emt 0:00:03]} 25. Bd3 {[%emt 0:00:08]} Rg8 {[%emt 0:03:07]} 26. Bf5 {[%emt 0:09:06]} Ne7 {[%emt 0:00:42]} 27. Kd2 {[%emt 0:00:40]} Bxf5 {[%emt 0:00:59]} 28. gxf5 {[%emt 0:00:24]} Nxd5 {[%emt 0:03:19]} 29. cxd5 {[%emt 0:00:29]} Qf6 {[%emt 0:00:42]} 30. Qh5+ {[%emt 0:00:08]} Kf8 {[%emt 0:00:15]} 31. Qg4 {[%emt 0:01:10]} a5 {[%emt 0:02:55]} 32. Rde1 {[%emt 0:04:47]} Re8 {[%emt 0:03:00]} 33. Rxe8+ {[%emt 0:00:11]} Kxe8 {[%emt 0:00:02]} 34. Re1+ {[%emt 0:00:05]} Kf8 {[%emt 0:01:20]} 35. Re6 {[%emt 0:00:26]} Qd8 {[%emt 0:00:26]} 36. Kd3 {[%emt 0:01:04]} Rh8 {[%emt 0:03:18]} 37. Nd2 {[%emt 0:01:57]} Rh4 {[%emt 0:00:39]} 38. Qg2 {[%emt 0:01:02]} g4 {[%emt 0:01:53]} 39. Nc4 {[%emt 0:01:28]} f3 {[%emt 0:01:50]} 40. Qg3 {[%emt 0:00:00]} f2 {[%emt 0:00:00]} 41. Qxf2 {[%emt 0:01:05]} g3 {[%emt 0:03:01]} 42. Qe3 {[%emt 0:02:56]} Rxd4+ {[%emt 0:00:48]} 43. Qxd4 {[%emt 0:00:09]} Bxd4 {[%emt 0:00:05]} 44. Kxd4 {[%emt 0:00:05]} g2 {[%emt 0:00:16]} 45. Rg6 {[%emt 0:00:10]} Qh4+ {[%emt 0:00:12]} 46. Kd3 {[%emt 0:00:13]} Qh2 {[%emt 0:01:13]} 47. Rf6+ {[%emt 0:00:18]} Ke7 {[%emt 0:01:32]} 48. Re6+ {[%emt 0:00:10]} Kd7 {[%emt 0:00:50]} 49. f6 {[%emt 0:00:15]} g1=Q {[%emt 0:00:25]} 50. Re7+ {[%emt 0:00:04]} Kd8 {[%emt 0:00:16]} 0-1

[Event "EYCC Girls-U12 2019"]
[Site "Bratislava"]
[Date "2019.08.04"]
[Round "3.3"]
[White "Zhapova, Yana"]
[Black "Orian, Noga"]
[Result "1-0"]
[ECO "B33"]
[WhiteElo "1809"]
[BlackElo "1628"]
[Annotator "NA"]
[PlyCount "83"]
[EventDate "2019.08.02"]
[EventType "swiss"]
[EventCountry "SVK"]
[SourceTitle "playchess.com"]
[Source "ChessBase"]
[SourceQuality "1"]
[TimeControl "40/5400+30:1800+30"]

1. e4 {[%emt 0:00:00]} c5 {[%emt 0:00:00]} 2. Nf3 {[%emt 0:00:21]} e6 {[%emt 0:00:00]} 3. d4 {[%emt 0:01:33]} cxd4 {[%emt 0:00:00]} 4. Nxd4 {[%emt 0:00:30]} Nc6 {[%emt 0:00:10]} 5. Nc3 {[%emt 0:07:12]} Nf6 {[%emt 0:00:22]} 6. Ndb5 {[%emt 0:01:21]} d6 {[%emt 0:00:19]} 7. Bf4 {[%emt 0:00:35]} e5 {[%emt 0:00:20]} 8. Bg5 {[%emt 0:00:22]} a6 {[%emt 0:00:28]} 9. Na3 {[%emt 0:00:30]} b5 {[%emt 0:00:19]} 10. Nd5 {[%emt 0:01:17]} Be7 {[%emt 0:00:33]} 11. Bxf6 {[%emt 0:02:28]} Bxf6 {[%emt 0:00:15]} 12. c4 {[%emt 0:01:22]} b4 {[%emt 0:05:22]} 13. Nc2 {[%emt 0:01:00]} a5 {[%emt 0:00:42]} 14. g3 {[%emt 0:04:47]} O-O {[%emt 0:08:12]} 15. Bg2 {[%emt 0:00:12]} Be6 {[%emt 0:05:45]} 16. O-O {[%emt 0:01:12]} Ne7 {[%emt 0:03:50]} 17. Nxf6+ {[%emt 0:05:17]} gxf6 {[%emt 0:00:20]} 18. b3 {[%emt 0:03:31]} Qd7 {[%emt 0:17:32]} 19. f4 {[%emt 0:12:06]} Qa7+ {[%emt 0:05:07]} 20. Kh1 {[%emt 0:00:29]} Qc5 {[%emt 0:00:18]} 21. Qd2 {[%emt 0:05:17]} Kh8 {[%emt 0:05:08]} 22. f5 {[%emt 0:08:27]} Bd7 {[%emt 0:07:55]} 23. Rad1 {[%emt 0:01:05]} d5 {[%emt 0:01:23]} 24. exd5 {[%emt 0:05:26]} Nxf5 {[%emt 0:06:01]} 25. g4 {[%emt 0:09:35]} Ng7 {[%emt 0:01:05]} 26. Rxf6 {[%emt 0:01:20]} Ne8 {[%emt 0:05:27]} 27. Rf2 {[%emt 0:08:35]} Bxg4 {[%emt 0:03:07]} 28. Rdf1 {[%emt 0:00:27]} f6 {[%emt 0:06:06]} 29. Qh6 {[%emt 0:03:21]} Ra7 {[%emt 0:01:52]} 30. Ne3 {[%emt 0:01:05]} Bc8 {[%emt 0:05:22]} 31. Be4 {[%emt 0:02:49]} Raf7 {[%emt 0:00:54]} 32. Bg6 {[%emt 0:03:51]} Rg7 {[%emt 0:00:20]} 33. Bxe8 {[%emt 0:00:25]} Rxe8 {[%emt 0:00:01]} 34. Rxf6 {[%emt 0:00:17]} Reg8 {[%emt 0:00:28]} 35. Rf7 {[%emt 0:01:36]} Bb7 {[%emt 0:06:40]} 36. Ng2 {[%emt 0:02:46]} Qc8 {[%emt 0:01:20]} 37. Qf6 {[%emt 0:02:33]} Qh3 {[%emt 0:03:49]} 38. Rg1 {[%emt 0:01:56]} e4 {[%emt 0:01:09]} 39. Qxg7+ {[%emt 0:01:04]} Rxg7 {[%emt 0:00:24]} 40. Rf8+ {[%emt 0:00:00]} Rg8 {[%emt 0:00:00]} 41. Rxg8+ Kxg8 {[%emt 0:00:54]} 42. Nf4+ {[%emt 0:00:15]} 1-0

[Event "EYCC Girls-U12 2019"]
[Site "Bratislava"]
[Date "2019.08.04"]
[Round "3.4"]
[White "Sala, Giulia"]
[Black "Vlasova, Olesia"]
[Result "0-1"]
[ECO "B36"]
[WhiteElo "1623"]
[BlackElo "1799"]
[Annotator "NA"]
[PlyCount "104"]
[EventDate "2019.08.02"]
[EventType "swiss"]
[EventCountry "SVK"]
[SourceTitle "playchess.com"]
[Source "ChessBase"]
[SourceQuality "1"]
[TimeControl "40/5400+30:1800+30"]

1. e4 {[%emt 0:00:00]} c5 {[%emt 0:00:00]} 2. Nf3 {[%emt 0:00:00]} Nc6 {[%emt 0:00:00]} 3. d4 {[%emt 0:00:02]} cxd4 {[%emt 0:00:00]} 4. Nxd4 {[%emt 0:00:12]} g6 {[%emt 0:00:00]} 5. c4 {[%emt 0:00:48]} Nf6 {[%emt 0:06:23]} 6. Nc3 {[%emt 0:00:33]} d6 {[%emt 0:00:15]} 7. Be2 {[%emt 0:01:43]} Nxd4 {[%emt 0:00:27]} 8. Qxd4 {[%emt 0:00:05]} Bg7 {[%emt 0:00:17]} 9. O-O {[%emt 0:01:35]} O-O {[%emt 0:00:10]} 10. Qd1 {[%emt 0:01:03]} Bd7 {[%emt 0:01:54]} 11. Be3 {[%emt 0:02:22]} Bc6 {[%emt 0:00:23]} 12. f3 {[%emt 0:01:52]} Nd7 {[%emt 0:00:30]} 13. Qd2 {[%emt 0:01:51]} a6 {[%emt 0:01:04]} 14. Bh6 {[%emt 0:04:08]} Bxh6 {[%emt 0:00:54]} 15. Qxh6 {[%emt 0:00:02]} Qb6+ {[%emt 0:00:31]} 16. Kh1 {[%emt 0:00:39]} Qxb2 {[%emt 0:01:03]} 17. Qe3 {[%emt 0:00:49]} Qb6 {[%emt 0:01:13]} 18. Qd2 {[%emt 0:02:15]} Rfc8 {[%emt 0:05:07]} 19. Rab1 {[%emt 0:05:19]} Qd8 {[%emt 0:01:03]} 20. Rfd1 {[%emt 0:05:11]} Qf8 {[%emt 0:02:56]} 21. Bd3 {[%emt 0:01:57]} Qg7 {[%emt 0:00:39]} 22. Nd5 {[%emt 0:00:53]} Bxd5 23. exd5 {[%emt 0:02:17]} Nc5 {[%emt 0:01:46]} 24. Re1 {[%emt 0:01:42]} Qd4 {[%emt 0:03:10]} 25. Rbd1 {[%emt 0:01:24]} Qxd3 {[%emt 0:03:11]} 26. Qxd3 {[%emt 0:00:02]} Nxd3 {[%emt 0:00:08]} 27. Rxd3 {[%emt 0:00:06]} Rxc4 {[%emt 0:00:11]} 28. Kg1 {[%emt 0:00:09]} Kf8 {[%emt 0:00:38]} 29. Rb1 {[%emt 0:00:06]} b5 {[%emt 0:00:25]} 30. Kf1 {[%emt 0:00:55]} Rac8 {[%emt 0:01:01]} 31. Ra3 {[%emt 0:00:31]} Rc1+ {[%emt 0:00:41]} 32. Rxc1 {[%emt 0:00:02]} Rxc1+ {[%emt 0:00:01]} 33. Kf2 {[%emt 0:00:27]} Rd1 {[%emt 0:00:21]} 34. Rxa6 {[%emt 0:00:08]} Rxd5 {[%emt 0:00:08]} 35. Ke2 {[%emt 0:00:24]} Kg7 {[%emt 0:00:15]} 36. Ra5 {[%emt 0:00:23]} Kf6 {[%emt 0:00:44]} 37. f4 {[%emt 0:00:23]} Rc5 {[%emt 0:00:57]} 38. Kd3 {[%emt 0:00:38]} Ke6 {[%emt 0:01:15]} 39. Kd4 {[%emt 0:00:24]} Rc4+ {[%emt 0:00:50]} 40. Ke3 {[%emt 0:00:00]} Rc2 {[%emt 0:00:00]} 41. Kf3 {[%emt 0:00:21]} Rb2 {[%emt 0:01:28]} 42. h3 {[%emt 0:00:13]} b4 {[%emt 0:01:16]} 43. g3 {[%emt 0:02:20]} b3 {[%emt 0:00:08]} 44. axb3 {[%emt 0:00:02]} Rxb3+ {[%emt 0:00:06]} 45. Kg4 {[%emt 0:00:13]} Kf6 {[%emt 0:01:00]} 46. Rd5 {[%emt 0:00:21]} Rc3 {[%emt 0:00:47]} 47. Rd4 {[%emt 0:00:21]} Rc6 {[%emt 0:01:42]} 48. Rd5 {[%emt 0:00:27]} e6 {[%emt 0:00:14]} 49. Rd3 {[%emt 0:00:41]} h6 {[%emt 0:01:48]} 50. Rd4 {[%emt 0:00:40]} e5 {[%emt 0:00:51]} 51. Rd5 {[%emt 0:00:12]} Ke6 {[%emt 0:00:39]} 52. Rd3 {[%emt 0:00:48]} f5+ {[%emt 0:00:42]} 0-1